bitfinex/quotes_ETHUSD_20250827
["timestamp","ask_amount","ask_price","bid_price","bid_amount"]
[1756317416676,2.45278309,4641.7,4641.6,0.001]
[1756317417978,5.45278309,4641.7,4641.6,0.001]
[1756317418353,3.2984,4641.7,4641.6,0.001]
[1756317418566,5.79005567,4641.7,4641.6,0.001]
[1756317418768,7.16556124,4641.7,4641.6,0.001]
[1756317419586,7.36736659,4641.7,4641.6,0.001]
[1756317419770,8.15936659,4641.7,4641.6,0.001]
[1756317421186,15.64615556,4641.7,4641.6,0.001]
[1756317422387,15.39576959,4641.7,4641.6,0.001]
[1756317424292,15.50376959,4641.7,4641.6,0.001]
[1756317424478,15.50367954,4641.7,4641.6,0.001]
[1756317425616,15.07117954,4641.7,4641.6,0.001]
[1756317425757,17.91717954,4641.7,4641.6,0.001]
[1756317425957,14.27917954,4641.7,4641.6,0.001]
[1756317426165,17.57990696,4641.7,4641.6,0.001]
[1756317426455,15.91912387,4641.7,4641.6,0.2878]
[1756317426653,13.874403,4641.7,4641.6,0.7182]
[1756317427699,16.32718609,4641.7,4641.6,0.001]
[1756317427994,9.96918609,4641.7,4641.6,0.001]
[1756317428181,11.28973373,4641.7,4641.6,0.001]
[1756317428382,8.83695064,4641.7,4641.6,0.2878]
[1756317428697,9.77878609,4641.7,4641.6,0.2878]
[1756317429568,7.624403,4641.7,4641.6,0.7182]
[1756317429766,9.77878609,4641.7,4641.6,0.7182]
[1756317430095,9.77878609,4641.7,4641.6,0.2878]
[1756317430311,7.624403,4641.7,4641.6,0.7182]
[1756317431297,6.724403,4641.7,4641.6,0.7182]
[1756317432870,3.086403,4641.7,4641.6,0.7182]
[1756317433070,6.724403,4641.7,4641.6,0.7182]
[1756317433993,6.723403,4641.7,4641.6,0.7182]
[1756317437474,8.87778609,4641.7,4641.6,0.2878]
[1756317437992,8.87778609,4641.7,4641.6,0.001]
[1756317440410,6.723403,4641.7,4641.6,0.001]
[1756317441089,8.87778609,4641.7,4641.6,0.001]
[1756317441610,6.723403,4641.7,4641.6,0.2889]
[1756317442110,8.87778609,4641.7,4641.6,0.7532]
[1756317442598,8.87778609,4641.7,4641.6,0.2889]
[1756317443213,6.723403,4641.7,4641.6,0.2889]
[1756317443401,8.87778609,4641.7,4641.6,0.2889]
[1756317444213,6.723403,4641.7,4641.6,0.2889]
[1756317444403,6.723403,4641.7,4641.6,0.7532]
[1756317444712,3.086403,4641.7,4641.6,0.7532]
[1756317444932,8.87778609,4641.7,4641.6,0.2889]
[1756317445079,8.87778609,4641.7,4641.6,0.001]
[1756317445279,6.723403,4641.7,4641.6,0.7532]
[1756317446199,6.637,4641.7,4641.6,0.7532]
[1756317446392,3.0,4641.7,4641.6,0.7532]
[1756317446591,6.637,4641.7,4641.6,0.7532]
[1756317446899,6.637,4641.7,4641.6,0.2889]
[1756317447105,6.637,4641.7,4641.6,0.7532]
[1756317447306,3.0,4641.7,4641.6,0.7532]
[1756317447612,6.637,4641.7,4641.6,0.7532]
[1756317447846,8.79138309,4641.7,4641.6,0.7532]
[1756317448109,11.03403452,4641.7,4641.6,0.001]
[1756317448312,11.23589957,4641.7,4641.6,0.001]
[1756317448480,11.88381057,4641.7,4641.6,0.001]
[1756317448682,12.67318713,4641.7,4641.6,0.001]
[1756317449021,19.82318713,4641.7,4641.6,0.001]
[1756317449205,20.0735731,4641.7,4641.6,0.001]
[1756317449814,20.0735731,4641.7,4641.6,1e-08]
[1756317452923,16.4365731,4641.7,4641.6,1e-08]
[1756317453120,20.0735731,4641.7,4641.6,1e-08]
[1756317454914,20.0735731,4641.7,4641.2,0.001]
[1756317454915,5.94647592,4641.5,4641.2,0.001]
[1756317455249,6.05456876,4641.3,4641.2,0.001]
[1756317455525,8.20433801,4641.3,4641.2,0.001]
[1756317455741,8.65643801,4641.3,4641.2,0.001]
[1756317456330,8.74284901,4641.3,4641.2,0.001]
[1756317457232,16.14323497,4641.3,4641.2,0.001]
[1756317457430,17.3027864,4641.3,4641.2,0.001]
[1756317458707,17.64014773,4641.3,4641.2,0.001]
[1756317459730,16.93766176,4641.3,4641.2,0.001]
[1756317460098,20.57466176,4641.3,4641.2,0.001]
[1756317461545,18.33201033,4641.3,4641.2,0.2889]
[1756317461690,15.48701033,4641.3,4641.2,0.7532]
[1756317461893,9.09508024,4641.3,4641.2,0.7532]
[1756317462094,12.73108024,4641.3,4641.2,0.7532]
[1756317462290,7.43808024,4641.3,4641.2,0.7532]
[1756317462515,10.87241099,4641.3,4641.2,0.7532]
[1756317462722,13.87241099,4641.3,4641.2,0.7532]
[1756317462927,10.23641099,4641.3,4641.2,0.7532]
[1756317463135,12.39097975,4641.3,4641.2,0.7532]
[1756317463636,13.18297975,4641.3,4641.2,0.2889]
[1756317464039,13.38444853,4641.3,4641.2,0.2889]
[1756317464333,13.6348345,4641.3,4641.2,0.2889]
[1756317464537,13.38444853,4641.3,4641.2,0.2889]
[1756317465034,13.38444853,4641.3,4641.2,0.7532]
[1756317465924,12.59248055,4641.3,4641.2,0.7532]
[1756317466096,10.14999999,4641.3,4641.2,0.7532]
[1756317466302,16.73256875,4641.3,4641.2,0.2889]
[1756317466959,17.49546875,4641.3,4641.2,0.001]
[1756317467318,17.39840824,4641.3,4641.2,0.3052]
[1756317467519,17.39840824,4641.3,4641.2,0.7688]
[1756317467754,13.76240824,4641.3,4641.2,0.7688]
[1756317467956,17.39840824,4641.3,4641.2,0.7688]
[1756317468513,14.45183948,4641.3,4641.2,0.7688]
[1756317468714,16.60640824,4641.3,4641.2,0.7688]
[1756317468924,16.40486875,4641.3,4641.2,0.7688]
[1756317469442,16.6064387,4641.3,4641.2,0.7688]
[1756317469852,14.45186994,4641.3,4641.2,0.7688]
[1756317470047,14.25029999,4641.3,4641.2,0.7688]
[1756317470250,16.40486875,4641.3,4641.2,0.7688]
[1756317470423,14.25029999,4641.3,4641.2,0.7688]
[1756317470629,13.78599999,4641.3,4641.2,0.7688]
[1756317471345,10.14999999,4641.3,4641.2,0.7688]
[1756317471552,13.78599999,4641.3,4641.2,0.7688]
[1756317472149,10.14999999,4641.3,4641.2,1.07204535]
[1756317472717,3.0,4641.3,4641.2,0.7688]
[1756317474013,5.15456876,4641.3,4641.2,0.7688]
[1756317474224,5.15456876,4641.3,4641.2,0.3052]
[1756317474668,5.15456876,4641.3,4641.2,0.7688]
[1756317474837,8.79056876,4641.3,4641.2,0.7688]
[1756317475021,6.97329219,4641.3,4641.2,0.7688]
[1756317475223,8.79056876,4641.3,4641.2,0.7688]
[1756317476656,5.15456876,4641.3,4641.2,0.7688]
[1756317476858,6.636,4641.3,4641.2,0.7688]
[1756317477228,8.79056876,4641.3,4641.2,0.7688]
[1756317477840,8.79056876,4641.3,4641.2,0.3052]
[1756317478976,6.636,4641.3,4641.2,0.3052]
[1756317479129,5.15456876,4641.3,4641.2,0.7688]
[1756317479330,8.78956876,4641.3,4641.2,0.3052]
[1756317479652,8.78956876,4641.3,4641.2,0.7688]
[1756317480351,8.78956876,4641.3,4641.2,0.001]
[1756317480648,8.78956876,4641.3,4641.2,0.2562]
[1756317481246,5.15461518,4641.2,4641.1,0.109]
[1756317481463,5.15461518,4641.2,4641.1,0.001]
[1756317481629,5.35636569,4641.2,4641.1,0.001]
[1756317481830,5.35636569,4641.2,4641.1,0.3052]
[1756317481831,5.81996569,4641.2,4641.1,0.3052]
[1756317482052,5.61821518,4641.2,4641.1,0.7688]
[1756317482257,3.4636,4641.2,4641.1,0.7688]
[1756317483065,5.61821518,4641.2,4641.1,0.7688]
[1756317483474,3.4636,4641.2,4641.1,0.7688]
[1756317484229,0.4636,4641.2,4641.1,0.3052]
[1756317484430,0.4636,4641.2,4641.1,0.7688]
[1756317484734,0.3373069,4641.4,4641.1,1.07405825]
[1756317484735,3.0,4641.3,4641.1,1.07405825]
[1756317484927,3.0,4641.3,4641.2,0.4636]
[1756317485130,3.0,4641.3,4641.2,0.4122]
[1756317485355,3.0,4641.3,4641.2,0.8758]
[1756317485665,3.4122,4641.3,4641.2,0.8758]
[1756317487063,0.4122,4641.3,4641.2,0.8758]
[1756317487363,4.0472,4641.3,4641.2,0.8758]
[1756317488257,7.0472,4641.3,4641.2,0.8758]
[1756317488765,3.4122,4641.3,4641.2,0.8758]
[1756317488952,7.0472,4641.3,4641.2,0.8758]
[1756317489357,3.0,4641.3,4641.2,0.8758]
[1756317490636,3.0,4641.3,4641.2,0.4122]
[1756317490836,0.9851643,4641.5,4641.2,0.4122]
[1756317490837,0.3372813,4641.5,4641.4,2.15452234]
[1756317491052,0.002,4641.6,4641.4,2.15452234]
[1756317491053,0.002,4641.6,4641.5,2.15447592]
[1756317491452,0.002,4641.6,4641.5,3.03027592]
[1756317492264,0.002,4641.6,4641.5,0.8758]
[1756317492543,0.002,4641.6,4641.5,3.03027592]
[1756317492771,0.002,4641.6,4641.5,3.54876488]
[1756317494887,0.002,4641.6,4641.5,1.39428896]
[1756317495087,0.002,4641.6,4641.5,0.93068896]
[1756317495251,0.002,4641.6,4641.5,0.4122]
[1756317495578,2.1564295,4641.6,4641.5,0.108]
[1756317495748,2.4550295,4641.6,4641.5,0.108]
[1756317496349,0.3006,4641.6,4641.5,0.108]
[1756317496989,2.4550295,4641.6,4641.5,0.108]
[1756317497287,7.09667769,4641.6,4641.1,0.001]
[1756317497488,3.7707,4641.6,4641.3,0.108]
[1756317497671,5.45504263,4641.6,4641.3,0.108]
[1756317498180,0.3006,4641.6,4641.3,0.5684]
[1756317498484,3.636,4641.6,4641.3,0.108]
[1756317498686,5.79046579,4641.6,4641.3,0.108]
[1756317499072,6.25086579,4641.6,4641.3,0.108]
[1756317499553,4.0964,4641.6,4641.3,0.108]
[1756317499753,0.4624,4641.6,4641.5,0.2976]
[1756317499975,3.002,4641.6,4641.5,0.2976]
[1756317500179,3.3028,4641.6,4641.3,0.108]
[1756317500414,5.15452234,4641.4,4641.3,0.108]
[1756317500552,5.15452234,4641.4,4641.1,0.001]
[1756317500754,0.3008,4641.2,4641.1,0.001]
[1756317501590,3.0,4641.2,4641.1,0.2986]
[1756317502555,3.3008,4641.2,4641.1,0.001]
[1756317502857,3.0,4641.2,4641.1,0.001]
[1756317503057,3.3008,4641.2,4641.1,0.001]
[1756317503778,5.45541518,4641.2,4641.1,0.001]
[1756317503978,3.3008,4641.2,4641.1,0.001]
[1756317505216,3.0,4641.2,4641.1,0.001]
[1756317506199,5.45541518,4641.2,4641.1,0.001]
[1756317506501,3.3008,4641.2,4641.1,0.001]
[1756317508406,3.0,4641.2,4641.1,0.001]
[1756317508611,3.0,4641.2,4641.1,0.2986]
[1756317509789,3.0,4641.2,4641.1,0.759]
[1756317510498,3.0,4641.2,4641.1,0.2986]
[1756317510901,3.3008,4641.2,4641.1,0.001]
[1756317511074,5.45541518,4641.2,4641.1,0.001]
[1756317511276,3.3008,4641.2,4641.1,0.001]
[1756317511608,5.45541518,4641.2,4641.1,0.001]
[1756317511788,9.08841518,4641.2,4641.1,0.001]
[1756317512111,6.9338,4641.2,4641.1,0.001]
[1756317513492,6.633,4641.2,4641.1,0.001]
[1756317513704,6.9338,4641.2,4641.1,0.001]
[1756317515580,6.633,4641.2,4641.1,0.001]
[1756317515780,3.0,4641.2,4641.1,0.001]
[1756317515990,3.3008,4641.2,4641.1,0.001]
[1756317516318,5.45541518,4641.2,4641.1,0.001]
[1756317516483,5.56341518,4641.2,4641.1,0.001]
[1756317516684,3.4088,4641.2,4641.1,0.001]
[1756317517424,5.56341518,4641.2,4641.1,0.001]
[1756317518122,3.4088,4641.2,4641.1,0.001]
[1756317519014,3.108,4641.2,4641.1,0.001]
[1756317519417,3.108,4641.2,4641.1,0.2986]
[1756317519617,3.108,4641.2,4641.1,0.867]
[1756317519618,3.0,4641.2,4641.1,0.867]
[1756317519819,3.0,4641.5,4641.2,2.15458529]
[1756317519988,3.635,4641.6,4641.3,0.4604]
[1756317519989,0.002,4641.6,4641.3,0.4604]
[1756317520190,3.002,4641.6,4641.4,0.5684]
[1756317520523,3.002,4641.6,4641.5,0.2976]
[1756317520723,0.002,4641.6,4641.5,0.758]
[1756317521423,0.002,4641.6,4641.5,2.91247592]
[1756317523407,0.002,4641.6,4641.5,0.758]
[1756317523903,0.002,4641.6,4641.5,0.2976]
[1756317524106,0.002,4641.6,4641.4,0.108]
[1756317524615,0.3008,4641.5,4641.4,0.108]
[1756317524815,0.3008,4641.5,4641.1,0.001]
[1756317524816,9.08727592,4641.5,4641.1,0.001]
[1756317525127,3.06345092,4641.4,4641.1,0.001]
[1756317525425,5.15461518,4641.2,4641.1,0.001]
[1756317525625,5.45541518,4641.2,4641.1,0.001]
[1756317525925,3.3008,4641.2,4641.1,0.001]
[1756317526227,3.4088,4641.2,4641.1,0.001]
[1756317526423,5.56341518,4641.2,4641.1,0.001]
[1756317527615,3.108,4641.2,4641.1,0.001]
[1756317527917,3.108,4641.2,4641.1,0.7283]
[1756317528115,3.108,4641.2,4641.1,0.2909]
[1756317528326,0.108,4641.2,4641.1,0.7283]
[1756317528641,0.002,4641.6,4641.1,1.15904787]
[1756317528940,0.002,4641.6,4641.5,2.15447592]
[1756317529137,0.002,4641.6,4641.5,2.26247592]
[1756317529308,0.002,4641.6,4641.5,2.98977592]
[1756317530732,0.002,4641.6,4641.5,3.01132067]
[1756317532424,0.002,4641.6,4641.5,6.64332067]
[1756317532744,0.002,4641.6,4641.5,6.62177592]
[1756317533044,0.002,4641.6,4641.5,8.23914962]
[1756317535661,0.002,4641.6,4641.5,8.32549862]
[1756317537844,0.002,4642.2,4641.5,6.1710227]
[1756317538143,0.002,4642.2,4642.0,9.55165226]
[1756317538344,0.002,4642.2,4642.0,14.83965226]
[1756317538664,0.002,4642.2,4642.0,17.37434854]
[1756317539009,0.002,4642.2,4642.0,17.46068654]
[1756317539460,0.002,4642.2,4642.1,2.15419745]
[1756317539755,0.002,4642.2,4642.1,2.61313942]
[1756317540057,0.002,4642.2,4642.1,2.90303942]
[1756317540259,0.002,4642.2,4642.1,4.94438122]
[1756317540411,0.002,4642.2,4642.1,8.55283925]
[1756317544249,0.002,4642.2,4642.1,15.95024765]
[1756317544438,0.002,4642.2,4642.1,15.86391465]
[1756317553848,0.002,4642.2,4642.1,15.42651465]
[1756317554053,0.3118,4642.2,4642.0,0.194337]
[1756317554252,0.93931674,4642.1,4641.1,0.001]
[1756317554551,0.20112524,4642.0,4641.1,0.001]
[1756317554752,0.3098,4641.2,4641.1,0.001]
[1756317555249,0.7583,4641.2,4641.1,0.001]
[1756317555832,2.91291518,4641.2,4641.1,0.001]
[1756317556225,0.7583,4641.2,4641.1,0.001]
[1756317556830,2.91291518,4641.2,4641.1,0.001]
[1756317557030,0.7583,4641.2,4641.1,0.001]
[1756317558330,5.91291518,4641.2,4641.1,0.001]
[1756317558763,3.7583,4641.2,4641.1,0.001]
[1756317559760,3.3098,4641.2,4641.1,0.001]
[1756317560130,3.7583,4641.2,4641.1,0.001]
[1756317562665,3.0,4641.2,4641.1,0.001]
[1756317562866,3.292,4641.2,4641.1,0.001]
[1756317564649,3.292,4641.2,4641.1,0.109]
[1756317565653,3.292,4641.2,4641.1,2.26366161]
[1756317565856,3.292,4641.2,4641.1,0.109]
[1756317567066,0.292,4641.2,4641.1,0.109]
[1756317568698,0.292,4641.2,4641.1,2.26366161]
[1756317568998,0.292,4641.2,4641.1,0.109]
[1756317569793,0.758,4641.2,4641.1,0.109]
[1756317570365,0.292,4641.2,4641.1,0.109]
[1756317571658,0.292,4641.2,4641.1,2.26366161]
[1756317571864,0.292,4641.2,4641.1,0.109]
[1756317572065,0.292,4641.2,4641.1,2.26366161]
[1756317572664,0.292,4641.2,4641.1,0.109]
[1756317575096,0.292,4641.2,4641.1,2.26366161]
[1756317575579,0.292,4641.2,4641.1,0.109]
[1756317576415,0.758,4641.2,4641.1,0.109]
[1756317576765,0.58325159,4641.2,4641.1,0.109]
[1756317577075,14.70231593,4641.2,4641.1,0.001]
[1756317577266,7.41390753,4641.2,4641.1,0.001]
[1756317577466,7.41395896,4641.2,4641.1,0.001]
[1756317578109,11.04595896,4641.2,4641.1,0.001]
[1756317578813,11.38328991,4641.2,4641.1,0.001]
[1756317579703,6.95928991,4641.2,4641.1,0.001]
[1756317579904,10.59028991,4641.2,4641.1,0.001]
[1756317581482,17.96509631,4641.2,4641.1,0.001]
[1756317581682,14.33409631,4641.2,4641.1,0.001]
[1756317581910,17.96509631,4641.2,4641.1,0.001]
[1756317582720,25.1150963,4641.2,4641.1,0.001]
[1756317584302,13.6298879,4641.2,4641.1,0.001]
[1756317584488,17.2608879,4641.2,4641.1,0.001]
[1756317584811,17.7178879,4641.2,4641.1,0.001]
[1756317585177,17.38055695,4641.2,4641.1,0.001]
[1756317586105,16.91435695,4641.2,4641.1,0.001]
[1756317586270,17.38035695,4641.2,4641.1,0.001]
[1756317588279,17.3810163,4641.2,4641.1,0.001]
[1756317588912,17.71834552,4641.2,4641.1,0.001]
[1756317589116,17.71833881,4641.2,4641.1,0.001]
[1756317594820,17.25233881,4641.2,4641.1,0.001]
[1756317595216,17.25231207,4641.2,4641.1,0.001]
[1756317595425,16.91498285,4641.2,4641.1,0.001]
[1756317596418,17.34638285,4641.2,4641.1,0.001]
[1756317597690,16.91498285,4641.2,4641.1,0.001]
[1756317598613,16.91504303,4641.2,4641.1,0.001]
[1756317598927,18.47576146,4641.2,4641.1,0.001]
[1756317600523,2.94675446,4640.9,4640.8,0.021]
[1756317600700,24.43494112,4640.9,4640.8,0.021]
[1756317600905,25.15304112,4640.9,4640.8,0.021]
[1756317601198,25.23946012,4640.9,4640.8,0.001]
[1756317601523,2.15484732,4640.7,4640.6,0.001]
[1756317601730,2.94721886,4639.9,4639.0,0.457]
[1756317601957,19.12110553,4639.9,4638.9,0.565]
[1756317602160,19.66050553,4639.9,4638.9,0.565]
[1756317602436,19.56652852,4639.9,4638.9,0.108]
[1756317602639,20.52797293,4639.9,4639.4,0.457]
[1756317602803,20.98497293,4639.9,4639.4,0.457]
[1756317603133,21.27167293,4639.9,4638.9,0.108]
[1756317603311,21.27167293,4639.9,4638.8,0.02]
[1756317603312,2.15563699,4639.0,4638.8,0.02]
[1756317603533,8.98846172,4638.9,4638.8,0.02]
[1756317603715,3.20177827,4638.9,4638.8,0.02]
[1756317604027,6.83277827,4638.9,4638.8,0.7849]
[1756317604222,6.83277827,4638.9,4638.8,0.3289]
[1756317604534,0.20173841,4638.9,4638.8,0.7859]
[1756317604715,3.631,4639.6,4638.8,0.8939]
[1756317604918,0.20171184,4639.5,4638.9,2.61268345]
[1756317605123,2.49259436,4640.1,4639.0,0.457]
[1756317605124,0.20171184,4639.4,4639.0,0.457]
[1756317605325,0.20171184,4639.3,4639.0,0.457]
[1756317605508,3.631,4639.5,4639.0,0.457]
[1756317605509,0.20171184,4639.2,4639.0,2.61259816]
[1756317605713,3.631,4639.5,4639.4,0.3079]
[1756317605916,0.20173913,4639.5,4639.4,0.7649]
[1756317606235,0.20173913,4639.5,4639.4,2.92035113]
[1756317606422,0.20173913,4639.5,4639.4,0.7649]
[1756317606624,3.83273913,4639.5,4639.4,0.3079]
[1756317606803,2.15549759,4639.3,4639.2,0.108]
[1756317607007,8.98823672,4639.3,4639.2,0.108]
[1756317607249,9.27493672,4639.3,4639.2,0.108]
[1756317607758,3.0,4639.2,4638.8,0.021]
[1756317607916,2.15568345,4638.9,4638.8,0.021]
[1756317608109,9.27515419,4638.9,4638.8,0.021]
[1756317608456,8.98845419,4638.9,4638.8,0.021]
[1756317608649,6.83377074,4638.9,4638.8,0.8939]
[1756317608940,8.98945419,4638.9,4638.8,0.4369]
[1756317609137,6.83377074,4638.9,4638.8,0.8939]
[1756317610259,8.98945419,4638.9,4638.8,0.3289]
[1756317610564,6.83377074,4638.9,4638.8,0.7859]
[1756317611140,3.20177074,4638.9,4638.8,0.7859]
[1756317611320,3.20177074,4638.9,4638.8,0.8939]
[1756317611321,3.632,4638.9,4638.8,0.8939]
[1756317613552,1.99545812,4639.4,4638.8,3.04958581]
[1756317613734,3.632,4639.3,4639.2,2.15554405]
[1756317614064,1.658,4640.1,4639.3,0.108]
[1756317614257,5.15525442,4639.9,4639.3,0.108]
[1756317614476,0.20147823,4639.8,4639.4,0.457]
[1756317614632,3.57,4639.8,4639.6,2.15535726]
[1756317614826,3.57,4639.8,4639.7,0.8729]
[1756317617265,4.658,4640.1,4639.7,0.8729]
[1756317617469,3.83351436,4640.0,4639.8,0.4746]
[1756317617661,0.20151436,4639.9,4639.8,0.4746]
[1756317617865,6.632,4640.0,4639.9,0.108]
[1756317618082,6.83351427,4640.0,4639.9,0.8847]
[1756317618266,3.20151427,4640.0,4639.9,0.8847]
[1756317618461,0.02,4640.8,4639.9,1.18870036]
[1756317618775,0.02,4640.8,4640.7,2.26284732]
[1756317619075,0.02,4640.8,4640.7,2.28439579]
[1756317619243,0.02,4640.8,4640.7,3.06109579]
[1756317619439,0.02,4640.8,4640.7,3.56114927]
[1756317619643,0.02,4640.8,4640.7,3.58269774]
[1756317624760,0.002,4641.1,4641.0,2.15470803]
[1756317625061,0.002,4641.1,4641.0,5.80725511]
[1756317625267,0.002,4641.1,4641.0,6.56240803]
[1756317625463,0.002,4641.1,4641.0,7.61372284]
[1756317625972,0.297,4641.1,4641.0,0.108]
[1756317628288,0.7294,4641.1,4641.0,0.108]
[1756317629374,0.297,4641.1,4641.0,0.108]
[1756317629883,0.7294,4641.1,4641.0,0.108]
[1756317630270,0.297,4641.1,4641.0,0.108]
[1756317630656,0.002,4641.1,4641.0,0.4101]
[1756317631689,0.002,4641.1,4641.0,0.108]
[1756317632367,0.297,4641.1,4641.0,0.108]
[1756317632592,0.002,4641.1,4641.0,0.108]
[1756317632764,0.297,4641.1,4641.0,0.108]
[1756317633791,0.7294,4641.1,4641.0,0.108]
[1756317633991,2.88406161,4641.1,4640.8,0.108]
[1756317634166,0.28840616,4641.0,4640.8,0.108]
[1756317634373,2.58710803,4641.0,4640.8,0.108]
[1756317634682,0.7274,4640.9,4640.8,0.108]
[1756317636168,0.7274,4640.9,4640.5,0.108]
[1756317636359,0.295,4640.9,4640.8,0.02]
[1756317637192,0.7274,4640.9,4640.8,0.02]
[1756317637396,3.32889446,4640.9,4640.8,0.02]
[1756317637970,6.95889446,4640.9,4640.8,0.02]
[1756317638804,1.17414,4640.9,4640.8,0.02]
[1756317638961,0.295,4640.9,4640.8,0.02]
[1756317639275,0.297,4640.9,4640.8,0.02]
[1756317639487,0.7294,4640.9,4640.8,0.02]
[1756317640263,0.002,4640.9,4640.8,0.02]
[1756317640674,0.002,4640.9,4640.8,0.3221]
[1756317641787,0.002,4640.9,4640.8,0.3021]
[1756317642582,0.297,4640.9,4640.5,0.108]
[1756317643465,2.15489376,4640.6,4640.5,0.108]
[1756317643661,3.0,4640.5,4640.0,0.108]
[1756317644004,5.15494225,4640.5,4640.0,0.108]
[1756317644200,2.15489376,4640.6,4640.0,0.108]
[1756317644390,2.15498953,4640.4,4640.0,0.108]
[1756317644896,2.15494982,4640.5,4640.0,0.108]
[1756317645096,3.0,4640.6,4640.0,0.108]
[1756317645398,2.35644322,4640.5,4640.0,0.108]
[1756317645595,4.02543645,4640.6,4640.0,0.108]
[1756317645799,0.20146497,4640.5,4640.0,0.108]
[1756317646184,2.35642951,4640.5,4640.0,0.108]
[1756317646505,0.20146497,4640.4,4640.0,0.108]
[1756317647070,2.15496198,4640.5,4640.0,0.108]
[1756317647820,0.2935,4640.1,4640.0,0.108]
[1756317647994,0.2935,4640.1,4639.8,0.02]
[1756317647995,2.15521886,4639.9,4639.8,0.02]
[1756317648191,2.46472651,4639.9,4639.8,0.02]
[1756317648410,6.09472651,4639.9,4639.8,0.02]
[1756317648572,9.66733068,4639.9,4639.8,0.02]
[1756317648901,9.46582303,4639.9,4639.8,0.02]
[1756317649205,10.11165826,4639.9,4639.8,0.02]
[1756317650283,6.48165826,4639.9,4639.8,0.02]
[1756317650487,10.11165826,4639.9,4639.8,0.02]
[1756317650805,11.10505679,4639.9,4639.8,0.02]
[1756317651004,11.21405679,4639.9,4639.8,0.02]
[1756317651177,7.58405679,4639.9,4639.8,0.02]
[1756317651377,11.21505679,4639.9,4639.8,0.02]
[1756317652669,2.94731176,4639.7,4639.6,0.001]
[1756317652917,9.03268197,4639.7,4639.6,1e-08]
[1756317653082,9.77048197,4639.7,4639.6,1e-08]
[1756317653285,10.10796883,4639.7,4639.6,1e-08]
[1756317653511,10.10776097,4639.7,4639.6,1e-08]
[1756317654007,2.94749759,4639.3,4639.2,0.001]
[1756317654207,10.32407887,4639.3,4639.2,0.001]
[1756317654409,11.06187887,4639.3,4639.2,0.001]
[1756317655178,11.18987887,4639.3,4639.2,0.001]
[1756317656198,11.29671713,4639.3,4639.2,0.001]
[1756317656903,7.66571713,4639.3,4639.2,0.001]
[1756317657114,11.29671713,4639.3,4639.2,0.001]
[1756317658618,7.66571713,4639.3,4639.2,0.001]
[1756317658787,11.63420995,4639.3,4639.2,0.001]
[1756317658990,15.15320994,4639.3,4639.2,0.001]
[1756317659317,14.60109282,4639.3,4639.2,0.001]
[1756317659521,18.0312193,4639.3,4639.2,0.001]
[1756317660288,14.1067193,4639.3,4639.2,0.001]
[1756317660484,17.7377193,4639.3,4639.2,0.3062]
[1756317660802,18.4755193,4639.3,4639.2,0.001]
[1756317660996,17.9232193,4639.3,4639.2,0.001]
[1756317661221,18.0312193,4639.3,4639.2,0.001]
[1756317661615,14.4002193,4639.3,4639.2,0.001]
[1756317661928,18.0312193,4639.3,4639.2,0.001]
[1756317662486,17.7387193,4639.3,4639.2,0.001]
[1756317662714,17.7387193,4639.3,4639.2,0.3062]
[1756317663384,14.1067193,4639.3,4639.2,0.7589]
[1756317663589,17.7387193,4639.3,4639.2,0.001]
[1756317665028,17.7387193,4639.3,4639.2,0.3062]
[1756317665395,14.21887351,4639.3,4639.2,0.3062]
[1756317665612,14.21887351,4639.3,4639.2,0.7589]
[1756317665802,16.3743711,4639.3,4639.2,0.7589]
[1756317666027,16.3743711,4639.3,4639.2,0.3062]
[1756317666322,17.4598711,4639.3,4639.2,0.001]
[1756317666627,17.97383065,4639.3,4639.2,0.001]
[1756317667009,18.1747992,4639.3,4639.2,0.001]
[1756317667327,18.41813065,4639.3,4639.2,0.001]
[1756317667525,18.61913163,4639.3,4639.2,0.001]
[1756317668293,18.61932725,4639.3,4639.2,0.001]
[1756317668496,18.61932725,4639.3,4635.8,0.02]
[1756317668497,3.792,4639.2,4637.5,0.4527]
[1756317668738,2.26414825,4637.9,4637.5,0.4527]
[1756317668941,2.26414825,4637.9,4637.7,0.4527]
[1756317669107,8.89614825,4637.9,4637.8,0.3252]
[1756317669311,8.89614825,4637.9,4637.8,0.7779]
[1756317670039,9.34884825,4637.9,4637.8,0.7779]
[1756317670340,9.64234825,4637.9,4637.8,0.02]
[1756317670728,9.34884825,4637.9,4637.8,0.02]
[1756317673126,5.71684825,4637.9,4637.8,0.3252]
[1756317673305,9.24084825,4637.9,4637.8,0.7779]
[1756317673741,14.23469999,4637.9,4637.8,0.7779]
[1756317674214,16.39084824,4637.9,4637.8,0.7779]
[1756317675342,10.60269999,4637.9,4637.8,0.7779]
[1756317675544,13.78199999,4637.9,4637.8,0.7779]
[1756317675762,15.93814824,4637.9,4637.8,0.7779]
[1756317676615,15.93814824,4637.9,4637.8,0.7789]
[1756317677146,16.13981621,4637.9,4637.8,0.7789]
[1756317678311,16.13981621,4637.9,4637.8,0.3262]
[1756317678510,16.96077576,4637.9,4637.8,0.021]
[1756317678740,17.3950869,4637.9,4637.8,0.021]
[1756317680418,17.73271748,4637.9,4637.8,0.021]
[1756317680615,17.42571748,4637.9,4637.8,0.021]
[1756317680848,16.91175793,4637.9,4637.8,0.021]